[Event "17th Delhi GM Open 2019-B"]
[Site "Delhi"]
[Date "2019.01.10"]
[Round "4"]
[White "Koustav Chakraborty"]
[Black "Haribabu Sharma"]
[Result "1-0"]
[ECO "B23"]
[WhiteElo "1898"]
[BlackElo "1707"]
[Annotator "NA"]
[PlyCount "151"]
[EventDate "2019.01.09"]
[EventType "swiss"]
[EventCountry "IND"]
[SourceTitle "playchess.com"]
[Source "ChessBase"]
[SourceQuality "1"]
[TimeControl "3600+30"]

1. e4 {[%emt 0:00:00]} c5 {[%emt 0:00:00]} 2. Nc3 {[%emt 0:00:00]} Nc6 {[%emt 0:00:00]} 3. f4 {[%emt 0:00:00]} e6 {[%emt 0:00:00]} 4. Nf3 {[%emt 0:00:00]} Be7 {[%emt 0:00:00]} 5. d4 {[%emt 0:00:00] B23: Closed Sicilian: Lines without g3} (5. Bb5 Qc7 6. O-O Nh6 7. Bxc6 bxc6 8. d3 O-O 9. Qe2 f6 10. b3 e5 11. f5 Nf7 12. g4 d5 13. exd5 {½-½ (31) Walter,S (2263)-Reza,W (2277) Szklarska Poreba 2017}) 5... cxd4 {[%emt 0:00:00]} 6. Nxd4 {[%emt 0:00:00]} a6 {[%emt 0:00:00]} 7. Be3 {[%emt 0:00:00]} Qc7 {[%emt 0:00:00]} 8. Be2 {[%emt 0:00:00]} Bh4+ $146 {[%emt 0:00:00]} ({Predecessor:} 8... d6 9. O-O Nf6 10. Kh1 O-O 11. Bf3 Bd7 12. Qe2 Nxd4 13. Bxd4 e5 14. Be3 Rac8 15. f5 d5 16. exd5 Bb4 17. g4 Bxc3 18. bxc3 Bb5 19. Qf2 Bxf1 20. Rxf1 {0-1 (37) Jelecevic,I (2167)-Kejzar,P (2009) Zadar 2016}) 9. g3 {[%emt 0:00:00]} Be7 {[%emt 0:00:00]} 10. Qd2 {[%emt 0:00:00]} b5 {[%emt 0:00:00]} 11. Nb3 {[%emt 0:00:00]} Bb4 {[%emt 0:00:00]} (11... Rb8 $11 {remains equal.}) 12. a3 {[%emt 0:00:00]} Be7 {[%emt 0:00:00]} 13. Rd1 {[%emt 0:00:00]} Bb7 {[%emt 0:00:00]} 14. Nc5 {[%emt 0:00:00]} Bc8 {[%emt 0:00:00] [#]} (14... d6 $14 15. Nxb7 Qxb7) 15. e5 $1 {[%emt 0:00:00]} Nxe5 {[%emt 0:00:00]} 16. fxe5 {[%emt 0:00:00]} Bxc5 {[%emt 0:00:00]} 17. Bxc5 {[%emt 0:00:00]} Qxc5 {[%emt 0:00:00] [#]} 18. Qg5 {[%emt 0:00:00]} (18. Ne4 $1 $18 {[%cal Re4c5] and the rest is easy.} Qxe5 {[%mdl 64] Double Attack} 19. Nd6+ Kf8 20. Qa5) 18... Bb7 {[%emt 0:00:00]} 19. Rf1 {[%emt 0:00:00]} g6 {[%emt 0:00:00]} 20. Bf3 $2 {[%emt 0:21:28]} (20. Rxf7 $16 Bc6 21. Rf4) 20... d5 {[%emt 0:00:00]} 21. Qf4 {[%emt 0:03:17]} ({Only move:} 21. Ne2 $1 $15) 21... Ne7 {[%emt 0:00:00]} 22. Bg4 {[%emt 0:00:12]} Nf5 {[%emt 0:00:00]} (22... O-O $17 23. Rd2 h5) 23. Bxf5 {[%emt 0:00:04]} gxf5 {[%emt 0:00:00]} 24. g4 {[%emt 0:00:22]} O-O-O {[%emt 0:00:13]} 25. gxf5 {[%emt 0:00:12]} d4 {[%emt 0:00:21]} 26. Ne4 {[%emt 0:00:35]} Bxe4 {[%emt 0:00:17]} 27. Qxe4 {[%emt 0:00:06]} Qd5 {[%emt 0:00:17]} 28. Rf4 {[%emt 0:00:31]} Qxe4+ {[%emt 0:01:19]} 29. Rxe4 {[%emt 0:00:05]} exf5 {[%emt 0:00:34]} 30. Rexd4 {[%emt 0:00:07]} Rxd4 {[%emt 0:00:45]} 31. Rxd4 {[%emt 0:00:05]} Re8 {[%emt 0:00:10]} 32. Rh4 {[%emt 0:00:41]} Rxe5+ {[%emt 0:00:37]} 33. Kd2 {[%emt 0:04:04]} Kd7 {[%emt 0:00:12]} 34. Rxh7 {[%emt 0:00:05]} Ke7 {[%emt 0:00:15]} 35. Rh6 {[%emt 0:02:04]} f4 {[%emt 0:01:42]} 36. Rh4 {[%emt 0:02:01]} Re4 {[%emt 0:00:02]} 37. Rg4 {[%emt 0:00:00]} Kf6 {[%emt 0:01:58]} 38. h4 {[%emt 0:00:34]} Kf5 {[%emt 0:00:44]} 39. Rg5+ {[%emt 0:00:03]} Kf6 {[%emt 0:03:25]} 40. Rg4 {[%emt 0:00:21]} Ke5 {[%emt 0:00:27]} 41. h5 {[%emt 0:00:28]} f5 {[%emt 0:00:00]} 42. Rg1 {[%emt 0:02:31]} f3 {[%emt 0:00:31]} 43. Rh1 {[%emt 0:02:26]} Kf4 {[%emt 0:12:01]} 44. h6 {[%emt 0:01:31]} Rd4+ {[%emt 0:00:12]} 45. Ke1 {[%emt 0:01:31]} Kg3 {[%emt 0:02:56]} 46. Rg1+ {[%emt 0:00:49]} Kh2 $2 {[%emt 0:00:15]} (46... Kf4 $11 {and Black has nothing to worry.} 47. Rg8 Rd7 {[%mdl 64] Decoy}) 47. Rg5 {[%emt 0:00:30]} Rh4 {[%emt 0:01:13]} 48. Kf2 {[%emt 0:00:15]} Rxh6 {[%emt 0:00:12]} 49. Rxf5 {[%emt 0:00:05]} Kh3 {[%emt 0:01:08]} 50. Kxf3 {[%emt 0:00:05]} Kh4 {[%emt 0:00:00]} 51. Kf4 {[%emt 0:01:17]} Rc6 {[%emt 0:01:18]} 52. c3 {[%emt 0:00:04]} Rc4+ {[%emt 0:01:31]} 53. Ke5 {[%emt 0:00:24]} Kg4 {[%emt 0:01:13]} 54. Rf6 {[%emt 0:00:06]} Ra4 {[%emt 0:00:39]} 55. Kd5 {[%emt 0:00:21]} Kg5 {[%emt 0:00:12]} 56. Rf2 {[%emt 0:00:10]} Rc4 {[%emt 0:00:37]} 57. Rf8 {[%emt 0:00:58]} Rh4 {[%emt 0:02:43]} 58. Ra8 {[%emt 0:01:00]} Rh2 {[%emt 0:00:52]} 59. b4 {[%emt 0:00:14]} Rh6 {[%emt 0:00:28]} 60. Rc8 {[%emt 0:00:10]} Kf5 {[%emt 0:02:06]} 61. Rc6 {[%emt 0:01:16]} Rh3 {[%emt 0:00:17]} 62. Kd4 {[%emt 0:00:03]} Rh4+ {[%emt 0:00:20]} 63. Kc5 {[%emt 0:00:08]} Ke5 {[%emt 0:01:22]} 64. Kb6 {[%emt 0:00:05]} Rc4 {[%emt 0:02:38]} 65. Rxc4 {[%emt 0:00:24]} bxc4 {[%emt 0:00:00]} 66. Kxa6 {[%emt 0:00:01]} Ke4 {[%emt 0:00:00]} 67. b5 {[%emt 0:00:04]} Kd3 {[%emt 0:00:02]} 68. b6 {[%emt 0:00:04]} Kxc3 {[%emt 0:00:00]} 69. b7 {[%emt 0:00:04]} Kc2 {[%emt 0:01:10]} 70. b8=Q {[%emt 0:00:09]} c3 {[%emt 0:00:00]} 71. a4 {[%emt 0:00:10]} Kc1 {[%emt 0:00:05]} 72. a5 {[%emt 0:00:26]} c2 {[%emt 0:00:01]} 73. Qf4+ {[%emt 0:00:07]} Kb1 {[%emt 0:00:01]} 74. Kb7 {[%emt 0:00:05]} c1=Q {[%emt 0:00:01]} 75. Qxc1+ {[%emt 0:02:12]} Kxc1 {[%emt 0:00:00]} 76. a6 {[%emt 0:00:00]} 1-0

[Event "17th Delhi GM Open 2019-B"]
[Site "Delhi"]
[Date "2019.01.10"]
[Round "4"]
[White "Dhanush Ragav N S"]
[Black "Aaditya Dhingra"]
[Result "1-0"]
[ECO "D66"]
[WhiteElo "1854"]
[BlackElo "1706"]
[Annotator "NA"]
[PlyCount "119"]
[EventDate "2019.01.09"]
[EventType "swiss"]
[EventCountry "IND"]
[SourceTitle "playchess.com"]
[Source "ChessBase"]
[SourceQuality "1"]
[TimeControl "3600+30"]

{[%evp 10,117,25,17,32767,22,21,20,16,5,24,17,20,11,25,32767,32767,16,32767,14,24,26,29,9,14,0,31,16,21,32767,32767,32767,32767,32767,32767,32767,32767,32767,32767,32767,32767,32767,32767,32767,32767,32767,32767,32767,32767,32767,222,91,32767,366,395,32767,32767,32767,32767,32767,32767,32767,32767,32767,32767,32767,32767,32767,32767,32767,32767,32767,32767,32767,32767,32767,32767,32767,32767,32767,32767,206,222,32767,32767,32767,354,368,380,360,32767,395,393,517,354,517,517,494,479,516,517,508,387,517,493,402,508,517,29980,29981]} 1. d4 {[%emt 0:00:00]} d5 {[%emt 0:00:00]} 2. c4 {[%emt 0:00:00]} e6 {[%emt 0:00:00]} 3. Nc3 {[%emt 0:00:00]} Nf6 {[%emt 0:00:00]} 4. Bg5 {[%emt 0:00:00]} Be7 {[%emt 0:00:00]} 5. e3 {[%emt 0:00:00]} Nbd7 {[%emt 0:00:00]} 6. Nf3 {[%emt 0:00:00]} h6 {[%emt 0:00:00]} 7. Bh4 {[%emt 0:00:00]} O-O {[%emt 0:00:00]} 8. Rc1 {[%emt 0:00:00]} c6 {[%emt 0:00:00]} 9. Bd3 {[%emt 0:00:00]} b6 {[%emt 0:00:00]} 10. O-O {[%emt 0:00:00]} Bb7 {[%emt 0:00:00]} 11. Qe2 {[%emt 0:00:00]} c5 {[%emt 0:00:00]} 12. Rfd1 {[%emt 0:00:00] D66: Queen's Gambit Declined: Classical: Main Line (7 Rc1 c6 8 Bd3)} (12. cxd5 Nxd5 13. Bxe7 Qxe7 14. Nxd5 Bxd5 15. dxc5 Nxc5 16. Bc4 {½-½ (16) Franco Ocampos,Z (2505)-Mirzoev,A (2510) Elgoibar 2011}) 12... Ne4 {[%emt 0:00:00]} 13. Bxe7 {[%emt 0:05:32]} Qxe7 {[%emt 0:00:00]} 14. cxd5 {[%emt 0:09:47]} exd5 {[%emt 0:00:00] LiveBook: 3 Games} 15. dxc5 {[%emt 0:00:41]} Nxc3 $146 {[%emt 0:07:59]} ({Predecessor:} 15... Ndxc5 16. Bb1 Rfd8 17. Nd4 Rac8 18. Ncb5 Ba6 19. Qe1 Qd7 {0-1 (19) Hendrich,T (1826)-Cofer,D (1765) ICCF email 2013}) 16. Rxc3 {[%emt 0:02:28]} bxc5 {[%emt 0:00:53]} 17. Rdc1 {[%emt 0:04:06]} c4 {[%emt 0:04:39]} 18. Bb1 {[%emt 0:02:33]} a5 {[%emt 0:03:21]} 19. b3 {[%emt 0:05:34]} Ba6 {[%emt 0:01:46]} 20. bxc4 {[%emt 0:01:51]} dxc4 {[%emt 0:02:18]} 21. Nd4 {[%emt 0:02:00]} Qf6 {[%emt 0:03:26]} 22. Qf3 {[%emt 0:03:49]} Qxf3 {[%emt 0:00:52]} 23. gxf3 {[%emt 0:00:30]} Nb6 {[%emt 0:00:16]} 24. Be4 {[%emt 0:00:30]} Rac8 {[%emt 0:01:56]} 25. Nc6 {[%emt 0:00:31]} Rc7 {[%emt 0:01:41]} 26. Nxa5 {[%emt 0:00:29]} Rc5 {[%emt 0:02:06]} 27. Ra3 {[%emt 0:00:28]} Rfc8 {[%emt 0:02:32]} 28. Nb7 {[%emt 0:00:30]} Rg5+ {[%emt 0:00:26]} 29. Kf1 {[%emt 0:00:30]} Ra8 {[%emt 0:00:47] [#]} (29... Bxb7 $16 30. Bxb7 Rc7) 30. Nc5 {[%emt 0:00:28]} (30. h4 $1 $18 {[%cal Rh4g5] and the rest is easy.} Rh5 31. Nd6) 30... Rxc5 {[%emt 0:01:01]} 31. Bxa8 {[%emt 0:00:12]} Bb5 {[%emt 0:00:04]} 32. Ra5 {[%emt 0:00:50]} c3+ {[%emt 0:00:19]} 33. Rxb5 {[%emt 0:00:31]} Rxb5 {[%emt 0:00:03]} 34. Rxc3 {[%emt 0:00:27]} Ra5 {[%emt 0:00:20]} 35. Be4 {[%emt 0:00:30]} Rxa2 {[%emt 0:00:11]} 36. Rc6 {[%emt 0:00:29]} Rb2 {[%emt 0:00:23]} 37. f4 {[%emt 0:00:27]} Kf8 {[%emt 0:00:14]} 38. Rc7 {[%emt 0:00:19]} Rb4 {[%emt 0:00:38]} 39. Bf3 {[%emt 0:00:29]} g6 {[%emt 0:01:04]} 40. Kg2 {[%emt 0:00:37]} Kg7 {[%emt 0:00:11]} 41. Rb7 {[%emt 0:00:23]} Kf6 {[%emt 0:00:53]} 42. Bc6 {[%emt 0:00:35]} g5 {[%emt 0:01:27]} 43. fxg5+ {[%emt 0:00:28]} hxg5 {[%emt 0:00:05]} 44. Be8 {[%emt 0:00:29]} Nd5 {[%emt 0:00:17]} 45. Rxf7+ {[%emt 0:00:26]} Ke6 {[%emt 0:00:01]} 46. Ra7 {[%emt 0:00:41]} Ke5 {[%emt 0:00:21]} 47. Ra5 {[%emt 0:00:27]} Kd6 {[%emt 0:00:19]} 48. Bf7 {[%emt 0:00:34]} Nf6 {[%emt 0:00:29]} 49. Rxg5 {[%emt 0:00:23]} Rb2 {[%emt 0:00:10]} 50. Kf3 {[%emt 0:00:30]} Rxf2+ {[%emt 0:00:02]} 51. Kxf2 {[%emt 0:00:32]} Ne4+ {[%emt 0:00:01]} 52. Kg2 {[%emt 0:00:34]} Nxg5 {[%emt 0:00:02]} 53. Bg6 {[%emt 0:00:31]} Ke5 {[%emt 0:00:19]} 54. h4 {[%emt 0:00:25]} Ne6 {[%emt 0:00:12]} 55. Kf3 {[%emt 0:00:34]} Kf6 {[%emt 0:01:02] [#]} 56. Bc2 $1 {[%emt 0:00:27]} Nc5 {[%emt 0:00:18]} 57. Kg4 {[%emt 0:00:24]} Nd7 {[%emt 0:00:17]} 58. Kf4 {[%emt 0:00:36]} Nf8 {[%emt 0:00:40]} (58... Nb6 $18 59. e4 Nd7) 59. Bf5 {[%emt 0:00:09]} Kg7 {[%emt 0:00:29]} 60. Kg5 {[%emt 0:00:17]} 1-0

[Event "17th Delhi GM Open 2019-B"]
[Site "Delhi"]
[Date "2019.01.10"]
[Round "4"]
[White "Deshpande Abhishek"]
[Black "Elangbam Shashikanta Singh"]
[Result "0-1"]
[ECO "B07"]
[WhiteElo "1845"]
[BlackElo "1702"]
[Annotator "NA RC"]
[PlyCount "60"]
[EventDate "2019.01.09"]
[EventType "swiss"]
[EventCountry "IND"]
[SourceTitle "playchess.com"]
[Source "ChessBase"]
[SourceQuality "1"]
[TimeControl "3600+30"]

{[%evp 8,49,22,2,18,-2,32767,79,81,81,88,52,43,68,32767,32767,40,32767,32767,32767,57,51,70,58,32767,32767,32767,32767,111,88,94,100,87,-26,-18,-13,-16,32767,-3,-14,102,111,129,138]} 1. e4 {[%emt 0:00:00]} d6 {[%emt 0:00:00]} 2. d4 {[%emt 0:00:00]} Nd7 {[%emt 0:00:00]} 3. Nc3 {[%emt 0:00:00]} e5 {[%emt 0:00:00]} 4. d5 {[%emt 0:00:00]} Ngf6 {[%emt 0:00:00]} 5. Be3 {[%emt 0:00:00]} Be7 {[%emt 0:00:00] B07: Pirc Defence: Miscellaneous Systems} 6. f3 {[%emt 0:00:00] LiveBook: 4 Games} c5 {[%emt 0:00:00]} (6... O-O 7. Qd2 c6 8. a4 a5 9. Bc4 Nb6 10. Bb3 cxd5 11. exd5 Nfd7 12. Nb5 Nc5 13. Ne2 {1-0 (56) Areshchenko,A (2625)-Nesterets,A (2337) Rivne 2005}) 7. Qd2 {[%emt 0:00:00]} a6 {[%emt 0:00:00]} 8. a4 {[%emt 0:00:00]} O-O {[%emt 0:00:00]} 9. a5 $146 {[%emt 0:00:00]} ({Predecessor:} 9. Nh3 b6 10. Be2 Re8 11. O-O Qc7 12. Nf2 {1-0 (31) Walton,A (1931)-Ventimiglia,C (1905) IECG email 2003}) 9... b5 {[%emt 0:00:00]} 10. axb6 {[%emt 0:00:00]} Nxb6 {[%emt 0:00:00]} 11. Na4 {[%emt 0:00:00]} Bd7 {[%emt 0:00:00]} 12. Nxb6 {[%emt 0:00:00]} Qxb6 {[%emt 0:00:00]} 13. b3 {[%emt 0:00:00]} Bb5 {[%emt 0:00:00]} 14. Ne2 {[%emt 0:00:00]} Nh5 {[%emt 0:00:00]} 15. Nc3 {[%emt 0:00:00]} Nf4 {[%emt 0:06:15]} 16. g3 {[%emt 0:00:00]} Ng6 {[%emt 0:00:37]} 17. Bd3 {[%emt 0:00:00]} Bd7 {[%emt 0:04:04]} 18. Na4 {[%emt 0:00:00]} Qd8 {[%emt 0:00:01]} 19. Nb2 {[%emt 0:00:00]} f5 {[%emt 0:01:41]} 20. Rxa6 {[%emt 0:01:04]} (20. exf5 $14 Bxf5 21. O-O) 20... Rxa6 {[%emt 0:00:00]} 21. Bxa6 {[%emt 0:00:01]} f4 {[%emt 0:11:15]} 22. Bf2 {[%emt 0:00:00]} fxg3 {[%emt 0:02:04]} 23. hxg3 {[%emt 0:01:18]} Bg5 {[%emt 0:00:03]} (23... Rxf3 $11 {keeps the balance.} 24. Be2 Bg5) 24. Qc3 {[%emt 0:02:47]} Qa8 {[%emt 0:04:26]} 25. Be2 $16 {[%emt 0:00:01]} Qa1+ {[%emt 0:03:57]} 26. Nd1 {[%emt 0:00:25]} Qc1 {[%emt 0:00:26]} 27. Kf1 {[%emt 0:03:12]} Qa3 {[%emt 0:03:53]} 28. Kg2 {[%emt 0:00:38]} Qa8 {[%emt 0:01:14]} 29. Ne3 {[%emt 0:00:01]} Qd8 {[%emt 0:03:14]} 30. Nc4 {[%emt 0:00:35]} Qf6 {[%emt 0:01:10]} 0-1

[Event "17th Delhi GM Open 2019-B"]
[Site "Delhi"]
[Date "2019.01.10"]
[Round "4"]
[White "Anwar N K"]
[Black "Doshi Khush"]
[Result "1-0"]
[ECO "B52"]
[WhiteElo "1817"]
[BlackElo "1701"]
[Annotator "NA RC"]
[PlyCount "63"]
[EventDate "2019.01.09"]
[EventType "swiss"]
[EventCountry "IND"]
[SourceTitle "playchess.com"]
[Source "ChessBase"]
[SourceQuality "1"]
[TimeControl "3600+30"]

{[%evp 10,50,26,7,6,14,42,32,29,23,33,43,24,43,31,19,42,16,23,28,22,12,22,10,32767,32767,32767,32767,64,68,58,79,32767,79,84,75,67,75,75,70,32767,72,71]} 1. e4 {[%emt 0:00:00]} c5 {[%emt 0:00:00]} 2. Nf3 {[%emt 0:00:00]} d6 {[%emt 0:00:00]} 3. Bb5+ {[%emt 0:00:00]} Bd7 {[%emt 0:00:00]} 4. Bxd7+ {[%emt 0:00:00]} Nxd7 {[%emt 0:00:00]} 5. c4 {[%emt 0:00:00]} Ngf6 {[%emt 0:00:00]} 6. Nc3 {[%emt 0:00:00]} e6 {[%emt 0:00:00]} 7. O-O {[%emt 0:00:00]} Be7 {[%emt 0:00:00]} 8. d4 {[%emt 0:00:00]} cxd4 {[%emt 0:00:00]} 9. Nxd4 {[%emt 0:00:00]} O-O {[%emt 0:00:00]} 10. b3 {[%emt 0:00:00] B52: Sicilian: Moscow Variation with 3...Bd7} a6 {[%emt 0:00:00]} 11. Bb2 {[%emt 0:00:00]} Rc8 {[%emt 0:00:00] LiveBook: 4 Games} 12. Rc1 {[%emt 0:00:00]} Re8 {[%emt 0:00:00]} 13. Re1 {[%emt 0:00:00] [#]} Qb6 $146 {[%emt 0:00:00]} ({Predecessor:} 13... Bf8 14. h3 Nc5 15. Rc2 Qc7 16. Rce2 Qb8 17. Re3 g6 {½-½ (93) Short,N (2360)-Timman,J (2600) London 1980}) 14. Qd2 {[%emt 0:00:00]} Ne5 {[%emt 0:00:00]} 15. h3 {[%emt 0:00:00]} Nc6 {[%emt 0:00:00]} 16. Rcd1 {[%emt 0:00:00]} Nd7 {[%emt 0:00:00]} 17. Nxc6 {[%emt 0:00:00]} bxc6 {[%emt 0:00:00]} 18. Na4 {[%emt 0:00:00]} Qc7 {[%emt 0:00:00]} 19. Ba3 {[%emt 0:00:00]} c5 {[%emt 0:00:00]} 20. Bb2 {[%emt 0:00:00]} Rcd8 {[%emt 0:00:00]} 21. Bc3 {[%emt 0:03:23]} Qb7 {[%emt 0:00:00]} 22. Ba5 {[%emt 0:01:52]} Rc8 {[%emt 0:00:00]} 23. f4 {[%emt 0:01:19]} Nb8 {[%emt 0:00:41]} 24. Qf2 {[%emt 0:02:33]} Nc6 {[%emt 0:06:11]} 25. Bc3 {[%emt 0:06:35]} Rcd8 $16 {[%emt 0:00:02]} 26. Rd3 {[%emt 0:06:32]} Bf8 {[%emt 0:02:22]} 27. Red1 {[%emt 0:01:29]} Nb4 {[%emt 0:03:41]} 28. R3d2 {[%emt 0:03:39]} Rc8 {[%emt 0:00:00]} 29. e5 {[%emt 0:02:55]} dxe5 {[%emt 0:01:56]} 30. Bxe5 {[%emt 0:00:56]} Qc6 {[%emt 0:01:15]} 31. a3 {[%emt 0:01:05]} f6 {[%emt 0:02:36]} 32. Ba1 {[%emt 0:00:45]} 1-0

[Event "17th Delhi GM Open 2019-B"]
[Site "Delhi"]
[Date "2019.01.10"]
[Round "4"]
[White "Himanshu S Chhabra"]
[Black "Dhanasekar, K.."]
[Result "0-1"]
[ECO "D02"]
[WhiteElo "1809"]
[BlackElo "1694"]
[Annotator "NA RC"]
[PlyCount "45"]
[EventDate "2019.01.09"]
[EventType "swiss"]
[EventCountry "IND"]
[SourceTitle "playchess.com"]
[Source "ChessBase"]
[SourceQuality "1"]
[TimeControl "3600+30"]

1. d4 {[%emt 0:00:00]} d5 {[%emt 0:00:00]} 2. Bf4 {[%emt 0:00:00]} Nf6 {[%emt 0:00:00]} 3. e3 {[%emt 0:00:00]} c5 {[%emt 0:00:00]} 4. c3 {[%emt 0:00:00]} Nc6 {[%emt 0:00:00]} 5. Nd2 {[%emt 0:00:00]} e6 {[%emt 0:00:00]} 6. Ngf3 {[%emt 0:00:00]} cxd4 {[%emt 0:00:00]} 7. exd4 {[%emt 0:00:00]} Nh5 {[%emt 0:00:00]} 8. Be3 {[%emt 0:00:00]} Bd6 {[%emt 0:00:00]} 9. Ne5 {[%emt 0:00:00]} g6 {[%emt 0:00:00]} 10. Nd3 $11 {[%emt 0:00:00] LiveBook: 18 Games} O-O {[%emt 0:00:00]} 11. Be2 {[%emt 0:00:00]} Ng7 {[%emt 0:00:00]} 12. Bf4 {[%emt 0:00:00]} f6 {[%emt 0:03:20]} 13. Bxd6 {[%emt 0:00:00]} Qxd6 {[%emt 0:00:00]} 14. O-O {[%emt 0:00:00]} e5 {[%emt 0:11:23]} 15. dxe5 {[%emt 0:00:00]} fxe5 {[%emt 0:00:00]} 16. a3 {[%emt 0:00:00]} Be6 {[%emt 0:21:00]} 17. Nb4 {[%emt 0:00:00]} Rad8 {[%emt 0:00:06]} 18. Qa4 {[%emt 0:00:00]} Nf5 {[%emt 0:00:03]} 19. Rad1 {[%emt 0:00:00]} Qc7 {[%emt 0:00:02]} 20. Nf3 {[%emt 0:00:00]} h6 {[%emt 0:22:03]} 21. Nxc6 {[%emt 0:00:00]} bxc6 {[%emt 0:00:01]} 22. Qg4 {[%emt 0:00:00]} Qg7 {[%emt 0:00:01]} 23. Rfe1 {[%emt 0:00:00]} 0-1

[Event "17th Delhi GM Open 2019-B"]
[Site "Delhi"]
[Date "2019.01.10"]
[Round "4"]
[White "Suresh Duvvala"]
[Black "Nayak, Sanjeeban"]
[Result "1/2-1/2"]
[ECO "B07"]
[WhiteElo "1688"]
[BlackElo "1844"]
[Annotator "NA RC"]
[PlyCount "129"]
[EventDate "2019.01.09"]
[EventType "swiss"]
[EventCountry "IND"]
[SourceTitle "playchess.com"]
[Source "ChessBase"]
[SourceQuality "1"]
[TimeControl "3600+30"]

{[%evp 8,129,-6,0,32767,32767,32767,32767,-3,-6,0,0,2,2,0,-10,-14,32767,32767,32767,29,8,16,20,14,22,11,12,54,22,43,4,23,32767,32767,32767,32767,32767,32767,32767,32767,32767,32767,32767,32767,32767,32767,32767,32767,32767,-14,-45,-59,32767,32767,32767,32767,32767,32767,32767,32767,32767,32767,32767,32767,32767,32767,32767,32767,32767,0,0,0,-81,32767,-70,-69,-62,-97,-144,-152,-234,0,0,0,0,0,0,13,7,12,14,8,0,32767,32767,32767,32767,49,32767,32767,32767,32767,32767,32767,32767,0,0,0,0,0,0,0,0,0,0,0,0,0,0,0,0,0,0]} 1. e4 {[%emt 0:00:00]} d6 {[%emt 0:00:00]} 2. Nf3 {[%emt 0:00:00]} Nf6 {[%emt 0:00:00]} 3. c3 {[%emt 0:00:00]} c6 {[%emt 0:00:00]} 4. e5 {[%emt 0:00:00]} dxe5 {[%emt 0:00:00]} 5. Nxe5 {[%emt 0:00:00]} Nbd7 {[%emt 0:00:00]} 6. Nf3 {[%emt 0:00:00]} e6 {[%emt 0:00:00]} 7. d4 {[%emt 0:00:00]} Be7 {[%emt 0:00:00]} 8. Bd3 {[%emt 0:00:00]} c5 {[%emt 0:00:00]} 9. O-O {[%emt 0:00:00]} b6 {[%emt 0:00:00]} 10. Re1 {[%emt 0:00:00]} O-O {[%emt 0:00:00]} 11. a3 {[%emt 0:00:00]} Bb7 {[%emt 0:00:00]} 12. Bf4 {[%emt 0:00:00]} Re8 {[%emt 0:00:00]} 13. Nbd2 {[%emt 0:02:14]} Qc8 {[%emt 0:05:52]} 14. Qe2 {[%emt 0:05:10]} Nf8 {[%emt 0:05:26]} 15. Ne5 {[%emt 0:02:12]} Ng6 {[%emt 0:00:21]} 16. Bg3 {[%emt 0:01:52]} Rd8 {[%emt 0:02:10]} 17. Rac1 {[%emt 0:06:16]} Bd6 {[%emt 0:08:30]} 18. Bxg6 {[%emt 0:00:25]} hxg6 {[%emt 0:00:14]} 19. Bh4 {[%emt 0:01:21]} Re8 {[%emt 0:02:49]} ({But not} 19... Bxe5 $2 20. dxe5 Ba6 21. Nc4 $18) 20. b4 {[%emt 0:05:10]} Qc7 {[%emt 0:01:33]} 21. Bg3 {[%emt 0:00:38]} Nh5 {[%emt 0:02:40]} 22. Ndc4 {[%emt 0:02:49]} Rad8 {[%emt 0:02:05]} 23. Nxd6 {[%emt 0:00:46]} Qxd6 {[%emt 0:00:34]} 24. bxc5 {[%emt 0:03:11]} bxc5 {[%emt 0:02:19]} 25. dxc5 {[%emt 0:00:01]} Qxc5 {[%emt 0:01:05]} 26. Qc4 {[%emt 0:01:57]} Rc8 {[%emt 0:03:15]} 27. Qb4 {[%emt 0:03:58]} Qd5 {[%emt 0:01:33]} 28. f3 {[%emt 0:00:25]} a5 {[%emt 0:00:51]} 29. Qb2 {[%emt 0:00:01]} Nxg3 {[%emt 0:00:25]} 30. hxg3 {[%emt 0:00:07]} Qc5+ {[%emt 0:01:19]} 31. Kh2 {[%emt 0:00:54]} Ba6 {[%emt 0:00:38]} 32. c4 {[%emt 0:01:03]} Red8 {[%emt 0:01:35]} 33. Re4 {[%emt 0:01:10]} Rd6 {[%emt 0:01:23]} 34. Rf4 {[%emt 0:00:00]} f6 {[%emt 0:02:45]} 35. Nxg6 {[%emt 0:00:36]} Rb6 {[%emt 0:01:19]} 36. Qd4 {[%emt 0:00:00]} Qxd4 {[%emt 0:00:41]} 37. Rxd4 {[%emt 0:00:00]} Kf7 {[%emt 0:01:40]} 38. Nf4 {[%emt 0:00:01]} Rc7 {[%emt 0:01:36]} 39. c5 {[%emt 0:00:09]} Rbc6 {[%emt 0:00:01]} 40. Ra4 {[%emt 0:00:13]} (40. Rd2 $11) 40... Rxc5 {[%emt 0:00:30]} 41. Rxc5 {[%emt 0:01:02]} Rxc5 {[%emt 0:00:00]} 42. Rd4 {[%emt 0:00:15]} e5 {[%emt 0:01:19]} 43. Rd7+ {[%emt 0:00:05]} (43. Rd5 $142 Rb5 44. Rxb5 Bxb5 45. Nd5) 43... Ke8 {[%emt 0:00:18]} 44. Ra7 {[%emt 0:00:54]} (44. Rd5 {was the only chance.} Rxd5 45. Nxd5) 44... Bf1 $2 {[%emt 0:00:53]} (44... exf4 $19 45. Rxa6 Rh5+ 46. Kg1 fxg3) 45. Ne6 {[%emt 0:00:20]} Rc2 $1 {[%emt 0:00:25]} 46. Nxg7+ {[%emt 0:00:06]} Kf8 {[%emt 0:00:20]} 47. Ne6+ {[%emt 0:00:55]} Kg8 {[%emt 0:00:16]} 48. Kh3 {[%emt 0:00:46]} (48. Rxa5 $2 Rxg2+ 49. Kh1 (49. Kh3 $2 Kf7 $19) 49... Kf7 $17) 48... Bxg2+ {[%emt 0:01:01]} 49. Kg4 {[%emt 0:00:25]} Rc6 {[%emt 0:00:20]} 50. Re7 {[%emt 0:00:28]} e4 {[%emt 0:01:03]} 51. fxe4 {[%emt 0:00:13]} Bxe4 {[%emt 0:00:01]} 52. Nd4 {[%emt 0:00:22]} f5+ $1 {[%emt 0:00:32]} 53. Kf4 {[%emt 0:00:06]} Rg6 {[%emt 0:00:32]} 54. Ra7 {[%emt 0:01:20]} Rg4+ {[%emt 0:00:49]} 55. Ke5 {[%emt 0:00:10]} Rxg3 {[%emt 0:00:27]} 56. Rxa5 {[%emt 0:00:08]} Kf7 {[%emt 0:01:46]} 57. Nxf5 {[%emt 0:00:01]} Bxf5 {[%emt 0:00:14]} 58. Kxf5 {[%emt 0:00:00]} Ke7 {[%emt 0:00:04]} 59. Ra6 {[%emt 0:00:10]} Kd7 {[%emt 0:00:03]} 60. Ke5 {[%emt 0:00:15]} Kc7 {[%emt 0:00:07]} 61. Kd5 {[%emt 0:00:13]} Kb7 {[%emt 0:00:03]} 62. Ra4 {[%emt 0:00:15]} Rg5+ {[%emt 0:00:13]} 63. Kd6 {[%emt 0:00:16]} Rg6+ {[%emt 0:00:17]} 64. Ke5 {[%emt 0:00:01]} Kb6 {[%emt 0:00:34]} 65. Ra8 $11 {[%emt 0:00:01]} 1/2-1/2